bitfinex/quotes_BTCUSD_20240906
["timestamp","ask_amount","ask_price","bid_price","bid_amount"]
[1725630600499,0.03220277,56132.0,56124.0,0.1576]
[1725630600795,0.007,56138.0,56137.0,0.690206]
[1725630601049,0.03006079,56148.0,56137.0,0.2885]
[1725630601311,0.178132,56138.0,56137.0,0.2885]
[1725630601767,0.356186,56151.0,56138.0,0.35626]
[1725630601769,0.000818,56154.0,56153.0,0.178084]
[1725630601988,0.000818,56154.0,56140.0,0.1646]
[1725630602208,0.000818,56154.0,56146.0,0.356213]
[1725630602419,0.014,56148.0,56147.0,0.53431]
[1725630602701,0.014,56148.0,56142.0,0.1601]
[1725630602999,0.014,56148.0,56137.0,0.001]
[1725630603000,0.47400196,56147.0,56137.0,0.001]
[1725630603259,0.534396,56138.0,56137.0,0.001]
[1725630603516,0.03093332,56138.0,56137.0,0.001]
[1725630603790,0.003,56138.0,56137.0,0.890671]
[1725630604048,0.003,56138.0,56137.0,1.29677437]
[1725630604298,0.003,56138.0,56137.0,0.94050337]
[1725630604533,0.534396,56138.0,56137.0,0.3008]
[1725630604766,0.44425842,56142.0,56137.0,0.3008]
[1725630604998,0.178132,56138.0,56137.0,0.3018]
[1725630605232,0.534396,56138.0,56137.0,0.3008]
[1725630605484,1.29967052,56138.0,56137.0,0.00366107]
[1725630605718,0.01,56123.0,56098.0,0.52650515]
[1725630605948,3.22363296,56138.0,56098.0,0.52650515]
[1725630605949,0.44425842,56112.0,56098.0,0.50790515]
[1725630606175,0.178188,56121.0,56115.0,0.178204]
[1725630606463,0.04608962,56138.0,56114.0,0.1573]
[1725630606464,0.178205,56115.0,56114.0,0.1573]
[1725630606698,0.44425842,56118.0,56100.0,0.1327]
[1725630606925,0.178249,56101.0,56100.0,0.1327]
[1725630607170,0.356488,56103.0,56094.0,0.1354]
[1725630607418,1.33561842,56094.0,56093.0,0.00164]
[1725630607680,1.7300822,56094.0,56093.0,0.00164]
[1725630608349,2.0866262,56094.0,56093.0,0.00164]
[1725630608582,2.0866262,56094.0,56087.0,0.001638]
[1725630608583,1.408437,56088.0,56087.0,0.001638]
[1725630608808,1.408437,56088.0,56083.0,0.00164]
[1725630608809,0.54491,56084.0,56083.0,0.00164]
[1725630609042,1.53912321,56084.0,56083.0,0.00164]
[1725630609271,1.56773721,56084.0,56083.0,0.00164]
[1725630609521,1.78208413,56084.0,56083.0,0.00164]
[1725630609755,1.78208413,56084.0,56068.0,0.52650515]
[1725630609756,0.356624,56082.0,56068.0,0.52642515]
[1725630609979,0.13950913,56084.0,56071.0,0.178344]
[1725630609980,0.48511896,56081.0,56071.0,0.178344]
[1725630610220,0.04086054,56081.0,56068.0,0.356705]
[1725630610462,0.04086054,56081.0,56069.0,0.1593]
[1725630610690,0.17831,56083.0,56070.0,0.13206648]
[1725630610907,0.254,56095.0,56073.0,0.178337]
[1725630610908,0.04086054,56080.0,56073.0,0.178337]
[1725630611128,0.178321,56079.0,56072.0,0.17834]
[1725630611356,0.04078104,56078.0,56069.0,0.2829]
[1725630611614,0.356703,56069.0,56068.0,0.001]
[1725630611842,1.37790967,56069.0,56068.0,0.001]
[1725630612069,0.178354,56068.0,56067.0,0.00164]
[1725630612292,0.356668,56075.0,56067.0,0.00164]
[1725630612523,0.009,56079.0,56067.0,0.00164]
[1725630612750,0.178354,56068.0,56067.0,0.00164]
[1725630612983,0.178349,56070.0,56067.0,0.00164]
[1725630613220,0.178353,56069.0,56067.0,0.00164]
[1725630613440,0.178354,56068.0,56067.0,0.00164]
[1725630613679,0.0420533,56068.0,56067.0,0.00164]
[1725630613906,0.178339,56073.0,56068.0,0.178353]
[1725630614162,0.178343,56072.0,56067.0,0.00264]
[1725630614395,0.04157615,56073.0,56067.0,0.00164]
[1725630614633,0.356626,56082.0,56067.0,0.00164]
[1725630614861,0.178317,56080.0,56068.0,0.2891]
[1725630615095,0.04101956,56079.0,56068.0,0.2891]
[1725630615325,0.44425842,56073.0,56068.0,0.2891]
[1725630615561,0.04157615,56072.0,56068.0,0.2891]
[1725630615790,0.178354,56068.0,56067.0,0.00564]
[1725630616017,0.9338253,56068.0,56067.0,0.00564]
[1725630616276,0.9338253,56068.0,56067.0,0.00464]
[1725630616508,1.31013403,56068.0,56067.0,0.00164]
[1725630617050,1.66684303,56068.0,56067.0,0.00164]
[1725630617282,1.2905343,56068.0,56067.0,0.00164]
[1725630617524,1.3025343,56068.0,56067.0,0.00264]
[1725630617751,1.6592433,56068.0,56067.0,0.00164]
[1725630618020,1.3145343,56068.0,56067.0,0.00264]
[1725630618287,1.2905343,56068.0,56067.0,0.00164]
[1725630618508,0.5771163,56068.0,56067.0,0.16654]
[1725630618741,0.9478253,56068.0,56067.0,0.00264]
[1725630618973,0.5911163,56068.0,56067.0,0.00264]
[1725630619195,0.9478253,56068.0,56067.0,0.00264]
[1725630619439,0.2204073,56068.0,56067.0,0.00164]
[1725630619706,0.2204073,56068.0,56067.0,0.00364]
[1725630619707,0.007,56068.0,56067.0,0.00364]
[1725630619946,0.2384073,56068.0,56067.0,0.00364]
[1725630620176,0.091,56083.0,56068.0,0.1346]
[1725630620177,0.356655,56077.0,56068.0,0.1346]
[1725630620410,0.44425842,56084.0,56073.0,0.178338]
[1725630620676,0.44425842,56084.0,56068.0,0.1346]
[1725630620677,0.04030403,56084.0,56068.0,0.1346]
[1725630620918,0.178311,56082.0,56075.0,0.1535]
[1725630621154,0.04030403,56084.0,56075.0,0.1535]
[1725630621155,0.56680918,56081.0,56075.0,0.1535]
[1725630621386,0.44425842,56090.0,56075.0,0.1535]
[1725630621613,0.44425842,56102.0,56088.0,0.178289]
[1725630621843,0.52650515,56094.0,56081.0,0.1517]
[1725630622077,0.01,56109.0,56081.0,0.1517]
[1725630622078,0.44425842,56119.0,56102.0,0.178245]
[1725630622311,0.178231,56107.0,56104.0,0.1234]
[1725630622539,0.03521917,56118.0,56104.0,0.1234]
[1725630622540,0.356426,56113.0,56104.0,0.1234]
[1725630622779,0.178226,56109.0,56104.0,0.301638]
[1725630623021,0.44425842,56130.0,56104.0,0.1234]
[1725630623298,0.356348,56125.0,56112.0,0.1676]
[1725630623535,0.091,56140.0,56112.0,0.1676]
[1725630623536,0.178207,56115.0,56112.0,0.1676]
[1725630623776,0.178207,56115.0,56104.0,0.1234]
[1725630623777,0.03474276,56114.0,56104.0,0.1234]
[1725630624015,0.1603,56125.0,56104.0,0.1234]
[1725630624016,0.44425842,56125.0,56105.0,0.1598]
[1725630624263,0.012,56136.0,56105.0,0.1598]
[1725630624264,0.178204,56116.0,56107.0,0.356458]
[1725630624525,0.03506036,56115.0,56105.0,0.1598]
[1725630624765,0.011,56125.0,56105.0,0.1598]
[1725630624766,0.356369,56122.0,56115.0,0.178204]
[1725630624995,0.356369,56122.0,56110.0,0.1598]
[1725630624996,0.17815,56133.0,56122.0,0.163]
[1725630625218,0.356362,56123.0,56115.0,0.163]
[1725630625446,0.03386947,56122.0,56115.0,0.163]
[1725630625676,0.534606,56116.0,56115.0,0.163]
[1725630625901,0.44425842,56133.0,56115.0,0.1793]
[1725630626149,0.55958088,56132.0,56115.0,0.1793]
[1725630626369,0.014,56133.0,56116.0,0.17907479]
[1725630626619,0.53732315,56150.0,56135.0,0.356277]
[1725630626620,0.70461915,56144.0,56135.0,0.356277]
[1725630626853,0.000818,56150.0,56136.0,0.33687343]
[1725630627126,0.000818,56150.0,56138.0,0.1578]
[1725630627127,0.88270515,56149.0,56138.0,0.1578]
[1725630627364,0.000818,56150.0,56143.0,0.178114]
[1725630627628,0.000818,56150.0,56144.0,0.178112]
[1725630627859,0.000818,56150.0,56149.0,0.178097]
[1725630628079,0.011818,56150.0,56149.0,0.3008]
[1725630628305,0.000818,56150.0,56149.0,0.3665009]
[1725630628529,0.000818,56150.0,56149.0,1.07630386]
[1725630628781,0.000818,56150.0,56149.0,0.5445979]
[1725630628782,0.004818,56150.0,56149.0,0.5445979]
[1725630629021,0.182912,56150.0,56149.0,0.3008]
[1725630629277,0.356197,56149.0,56132.0,0.00356218]
[1725630629546,0.004818,56150.0,56143.0,0.1553]
[1725630629778,0.004818,56150.0,56143.0,0.285]
[1725630629779,0.178102,56148.0,56143.0,0.285]
[1725630630057,0.008818,56150.0,56143.0,0.285]
[1725630630332,0.178113,56144.0,56143.0,0.285]
[1725630630887,0.534339,56144.0,56143.0,0.1553]
[1725630631105,0.178912,56150.0,56149.0,0.001]
[1725630631345,1.27650583,56150.0,56149.0,0.001]
[1725630631632,0.01,56146.0,56132.0,0.003]
[1725630631899,1.69129442,56133.0,56132.0,0.003]
[1725630632211,2.07931711,56133.0,56132.0,0.003]
[1725630632469,0.178205,56115.0,56114.0,0.152]
[1725630632701,0.92560896,56115.0,56114.0,0.152]
[1725630632926,0.92560896,56115.0,56107.0,0.1615]
[1725630632927,0.03458396,56115.0,56107.0,0.1615]
[1725630633153,0.53473,56103.0,56102.0,0.1243]
[1725630633388,0.356466,56107.0,56102.0,0.1243]
[1725630633624,0.178221,56110.0,56102.0,0.1243]
[1725630633846,0.03513975,56114.0,56102.0,0.1243]
[1725630633847,0.178238,56105.0,56102.0,0.1243]
[1725630634079,0.03593387,56109.0,56102.0,0.1243]
[1725630634305,0.178239,56105.0,56102.0,0.1243]
[1725630634525,0.01860323,56115.0,56102.0,0.1243]
[1725630634761,0.17821,56114.0,56103.0,0.36004637]
[1725630635029,0.01860323,56115.0,56105.0,0.1618]
[1725630635267,0.01860323,56115.0,56114.0,0.696425]
[1725630635497,0.52650515,56132.0,56122.0,0.178181]
[1725630635498,0.178165,56128.0,56122.0,0.178181]
[1725630635723,0.52650515,56132.0,56119.0,0.1638]
[1725630635724,0.534568,56120.0,56119.0,0.1638]
[1725630635953,0.9247371,56120.0,56119.0,0.1638]
[1725630636688,0.9247371,56120.0,56114.0,0.123]
[1725630636689,0.3901691,56120.0,56114.0,0.123]
[1725630636915,0.356312,56131.0,56114.0,0.123]
[1725630637138,0.534568,56120.0,56119.0,0.001]
[1725630637383,0.178189,56120.0,56119.0,0.001]
[1725630637609,0.890947,56120.0,56119.0,0.001]
[1725630637835,0.178189,56120.0,56119.0,0.001]
[1725630638304,0.011,56120.0,56119.0,0.535576]
[1725630638536,0.011,56120.0,56119.0,0.21101397]
[1725630638772,0.011,56120.0,56119.0,0.1571]
[1725630638773,0.019,56120.0,56119.0,0.1571]
[1725630639024,0.019,56120.0,56119.0,1.22357296]
[1725630639254,0.52650515,56135.0,56120.0,0.1571]
[1725630639493,0.178124,56141.0,56136.0,0.178138]
[1725630639726,0.356271,56137.0,56129.0,0.1571]
[1725630639958,0.178157,56130.0,56129.0,0.1571]
[1725630640206,0.03077467,56140.0,56132.0,0.356299]
[1725630640207,0.178128,56140.0,56132.0,0.356299]
[1725630640429,0.000818,56150.0,56129.0,0.33261096]
[1725630640430,0.356245,56142.0,56129.0,0.33261096]
[1725630640655,0.000818,56150.0,56133.0,0.356294]
[1725630640881,0.03029873,56149.0,56138.0,0.17813]
[1725630641110,0.000818,56150.0,56139.0,0.1597624]
[1725630641335,0.03064085,56150.0,56139.0,0.1562]
[1725630641584,0.356223,56145.0,56139.0,0.1562]
[1725630641819,0.03021941,56144.0,56130.0,0.1552]
[1725630642052,0.03021941,56144.0,56133.0,0.001]
[1725630642053,0.890725,56134.0,56133.0,0.001]
[1725630642292,0.031568,56134.0,56124.0,0.1672]
[1725630642797,0.890867,56125.0,56124.0,0.1672]
[1725630642799,0.102,56140.0,56115.0,0.1343]
[1725630642800,0.534606,56116.0,56115.0,0.1343]
[1725630643028,0.356431,56112.0,56106.0,0.071422]
[1725630643288,0.356431,56112.0,56095.0,0.1549]
[1725630643289,0.356531,56096.0,56095.0,0.1549]
[1725630643515,0.92892897,56096.0,56095.0,0.1549]
[1725630643743,0.356548,56094.0,56080.0,0.178315]
[1725630643978,0.178304,56084.0,56081.0,0.0816363]
[1725630644218,0.178298,56086.0,56081.0,0.178312]
[1725630644442,0.52650515,56103.0,56082.0,0.17551096]
[1725630644661,0.03786434,56102.0,56084.0,0.1627]
[1725630644891,0.44425842,56117.0,56085.0,0.21325379]
[1725630645125,0.178241,56104.0,56098.0,0.178258]
[1725630645376,0.178239,56105.0,56100.0,0.178252]
[1725630645607,0.014,56103.0,56090.0,0.1562]
[1725630645856,0.014,56103.0,56092.0,0.1624]
[1725630646100,0.014,56103.0,56102.0,0.178246]
[1725630646336,0.0877,56122.0,56102.0,0.178246]
[1725630646337,0.44425842,56115.0,56102.0,0.1624]
[1725630646573,0.005,56104.0,56102.0,0.1624]
[1725630646808,0.005,56104.0,56103.0,0.14424]
[1725630647041,0.005,56104.0,56103.0,1.21096796]
[1725630647281,0.005,56104.0,56103.0,0.85448096]
[1725630647516,0.005,56104.0,56103.0,1.21096796]
[1725630647774,0.005,56104.0,56103.0,0.85448096]
[1725630648248,0.178213,56113.0,56106.0,0.356468]
[1725630648528,0.356407,56116.0,56106.0,0.356468]
[1725630648529,0.178206,56115.0,56107.0,0.1032706]
[1725630648765,0.35639,56119.0,56113.0,0.17821]
[1725630649051,0.35639,56119.0,56114.0,0.1582]
[1725630649252,0.534615,56115.0,56114.0,0.1582]
[1725630649489,0.1,56130.0,56109.0,0.1582]
[1725630649722,0.356339,56127.0,56110.0,0.19525118]
[1725630649966,0.178178,56124.0,56111.0,0.1681]
[1725630650202,0.03357575,56129.0,56111.0,0.1681]
[1725630650203,0.03357575,56129.0,56114.0,0.178206]
[1725630650459,0.356366,56123.0,56113.0,0.356423]
[1725630650707,0.356329,56128.0,56111.0,0.1681]
[1725630650708,0.356376,56121.0,56111.0,0.1681]
[1725630650973,0.356474,56105.0,56104.0,0.1678]
[1725630651219,0.356402,56117.0,56106.0,0.356466]
[1725630651470,0.005,56119.0,56118.0,0.178195]
[1725630651725,0.183195,56119.0,56118.0,0.1623]
[1725630651942,1.28108451,56119.0,56118.0,0.1623]
[1725630652189,0.92469951,56119.0,56118.0,0.1623]
[1725630652416,0.91969951,56119.0,56118.0,0.1623]
[1725630652642,0.56331451,56119.0,56118.0,0.1623]
[1725630652898,0.56331451,56119.0,56103.0,0.128]
[1725630652899,0.356435,56112.0,56104.0,0.1648]
[1725630653132,0.17822,56111.0,56107.0,0.17823]
[1725630653383,0.178219,56111.0,56107.0,0.17823]
[1725630653621,0.356412,56115.0,56105.0,0.02928]
[1725630653864,0.178259,56098.0,56097.0,0.1293]
[1725630654125,0.534777,56098.0,56097.0,0.1293]
[1725630654366,0.356474,56105.0,56097.0,0.14223]
[1725630654615,0.178238,56105.0,56101.0,0.178247]
[1725630654855,0.178238,56105.0,56098.0,0.1577]
[1725630654856,0.03619605,56105.0,56098.0,0.1577]
[1725630655083,0.534768,56099.0,56098.0,0.1577]
[1725630655321,0.89128,56099.0,56098.0,0.1577]
[1725630655608,0.356496,56102.0,56098.0,0.1577]
[1725630655853,0.356487,56103.0,56098.0,0.1577]
[1725630656109,0.178239,56105.0,56101.0,0.178249]
[1725630656382,0.178239,56105.0,56099.0,0.385212]
[1725630656383,0.001,56105.0,56099.0,0.0287]
[1725630656653,0.042307,56121.0,56100.0,0.21164534]
[1725630656910,0.001,56102.0,56101.0,0.16726413]
[1725630657159,0.356397,56118.0,56108.0,0.178226]
[1725630657410,0.07731182,56121.0,56109.0,0.1960456]
[1725630657411,0.178213,56113.0,56109.0,0.1960456]
[1725630657639,0.07731182,56121.0,56109.0,0.356448]
[1725630657892,0.07731182,56121.0,56108.0,0.1543]
[1725630657893,0.03429022,56120.0,56108.0,0.1543]
[1725630658130,0.178224,56109.0,56108.0,0.1543]
[1725630658643,0.356411,56115.0,56108.0,0.1875539]
[1725630658898,0.03429022,56120.0,56108.0,0.1543]
[1725630658899,0.178222,56110.0,56108.0,0.1543]
[1725630659130,0.178213,56113.0,56108.0,0.1543]
[1725630659364,0.042307,56121.0,56112.0,0.178214]
[1725630659365,0.178203,56116.0,56112.0,0.178214]
[1725630659610,0.042307,56121.0,56111.0,0.00356401]
[1725630659866,0.008,56120.0,56113.0,0.33301096]
[1725630660105,0.042307,56121.0,56120.0,0.178189]
[1725630660346,0.042307,56121.0,56120.0,0.1575]
[1725630660615,0.042307,56121.0,56120.0,0.823568]
[1725630660873,0.042307,56121.0,56120.0,0.289]
[1725630661131,0.933237,56121.0,56120.0,0.1575]
[1725630661384,0.933237,56121.0,56113.0,0.1676]
[1725630661385,0.534625,56114.0,56113.0,0.1676]
[1725630661640,0.56915341,56114.0,56113.0,0.1676]
[1725630661898,0.56915341,56114.0,56106.0,0.1291]
[1725630661899,0.17823,56107.0,56106.0,0.2967]
[1725630662163,0.03452841,56114.0,56106.0,0.19727]
[1725630662401,0.042307,56121.0,56106.0,0.1676]
[1725630662402,1.247613,56107.0,56106.0,0.1676]
[1725630662645,0.534816,56094.0,56093.0,0.169232]
[1725630662939,0.39210611,56107.0,56093.0,0.169232]
[1725630662940,0.03667264,56106.0,56093.0,0.169232]
[1725630663190,0.534816,56094.0,56093.0,0.169232]
[1725630663399,0.356528,56097.0,56093.0,0.169232]
[1725630663634,0.356544,56094.0,56093.0,0.169232]
[1725630663896,0.178272,56094.0,56093.0,0.169232]
[1725630664383,0.03667264,56106.0,56093.0,0.169232]
[1725630664384,0.356479,56105.0,56093.0,0.169232]
[1725630664616,0.356393,56118.0,56094.0,0.01727974]
[1725630664846,0.356455,56108.0,56097.0,0.178262]
[1725630665092,0.178269,56095.0,56094.0,0.01727974]
[1725630665330,0.356496,56102.0,56094.0,0.01727974]
[1725630665639,0.0369904,56101.0,56093.0,0.170232]
[1725630665900,0.178272,56094.0,56093.0,0.170232]
[1725630666140,0.3565,56101.0,56093.0,0.525779]
[1725630666379,0.01860323,56100.0,56094.0,0.05293443]
[1725630666634,0.178269,56095.0,56094.0,0.001]
[1725630666868,0.01860323,56100.0,56093.0,0.169232]
[1725630666869,0.178272,56094.0,56093.0,0.169232]
[1725630667825,0.01860323,56100.0,56093.0,0.169232]
[1725630668146,0.01860323,56100.0,56094.0,0.17551096]
[1725630668395,0.042307,56121.0,56100.0,0.1671]
[1725630668636,0.042307,56121.0,56113.0,0.534634]
[1725630668637,0.01860323,56114.0,56113.0,0.534634]
[1725630668872,0.042307,56121.0,56113.0,0.534634]
[1725630668873,0.1782,56117.0,56113.0,0.345311]
[1725630669121,0.042307,56121.0,56120.0,1.058047]
[1725630669401,0.042307,56121.0,56120.0,1.67781638]
[1725630669632,0.042307,56121.0,56120.0,1.23355796]
[1725630669902,0.042307,56121.0,56120.0,2.28075118]
[1725630670151,0.042307,56121.0,56120.0,0.4136558]
[1725630670405,0.042307,56121.0,56120.0,0.2903]
[1725630670909,0.042307,56121.0,56120.0,0.824868]
[1725630671147,0.042307,56121.0,56120.0,1.71313696]
[1725630671381,0.042307,56121.0,56120.0,1.35675796]
[1725630671618,0.042307,56121.0,56120.0,1.53231822]
[1725630671886,0.042307,56121.0,56120.0,1.89969722]
[1725630672134,0.000818,56150.0,56145.0,0.178109]
[1725630672375,0.000818,56150.0,56132.0,0.2889]
[1725630672376,0.01860323,56145.0,56144.0,0.1562]
[1725630672633,0.55293323,56145.0,56144.0,0.1562]
[1725630673154,0.01860323,56145.0,56144.0,0.17182]
[1725630673394,0.01860323,56145.0,56144.0,1.01616996]
[1725630673653,0.01860323,56145.0,56144.0,1.37239596]
[1725630673888,0.55293323,56145.0,56144.0,0.2907]
[1725630674147,0.55293323,56145.0,56144.0,0.1562]
[1725630674441,0.04821173,56145.0,56125.0,0.52650515]
[1725630674691,0.01860323,56145.0,56132.0,0.17815]
[1725630674944,0.178122,56142.0,56132.0,0.1669]
[1725630675203,0.01860323,56145.0,56144.0,0.345013]
[1725630675439,0.01860323,56145.0,56144.0,0.708239]
[1725630675697,0.02260323,56145.0,56144.0,0.65692396]
[1725630675942,0.02260323,56145.0,56144.0,1.36237596]
[1725630676205,0.01860323,56145.0,56144.0,1.36137596]
[1725630676445,0.000818,56150.0,56149.0,0.534292]
[1725630676726,0.000818,56150.0,56149.0,1.21969796]
[1725630676933,0.000818,56150.0,56149.0,1.57589296]
[1725630677213,0.000818,56150.0,56149.0,2.06838796]
[1725630677449,0.000818,56154.0,56153.0,2.34191842]
[1725630677717,0.000818,56154.0,56153.0,2.71298964]
[1725630678008,0.00082,56171.0,56160.0,1.98559542]
[1725630678274,0.00082,56171.0,56160.0,2.53723138]
[1725630678796,0.00082,56171.0,56160.0,2.18110638]
[1725630679052,0.00082,56171.0,56170.0,0.697991]
[1725630679302,0.00082,56171.0,56170.0,1.87112048]
[1725630679811,0.00082,56171.0,56170.0,0.3611991]
[1725630680082,0.890232,56165.0,56164.0,0.1567]
[1725630680328,0.00082,56171.0,56164.0,0.1567]
[1725630680659,0.178046,56165.0,56164.0,0.1567]
[1725630680822,0.02596175,56170.0,56155.0,0.2883]
[1725630681061,0.2321,56179.0,56158.0,0.178068]
[1725630681304,0.17804,56168.0,56161.0,0.356115]
[1725630681535,0.356047,56173.0,56160.0,0.178061]
[1725630681777,0.02580327,56178.0,56162.0,0.35966868]
[1725630681778,0.178035,56169.0,56162.0,0.35966868]
[1725630682032,0.1,56179.0,56167.0,0.35608]
[1725630682285,0.178016,56175.0,56170.0,0.004]
[1725630682542,0.534082,56171.0,56170.0,0.004]
[1725630682784,0.534082,56171.0,56170.0,0.003]
[1725630682785,0.356056,56171.0,56170.0,0.003]
[1725630683031,0.002,56193.0,56170.0,0.003]
[1725630683032,0.38663,56191.0,56170.0,0.003]
[1725630683270,0.178004,56179.0,56174.0,0.178016]
[1725630683517,0.356785,56185.0,56177.0,0.178005]
[1725630683789,0.356785,56185.0,56178.0,0.00355967]
[1725630684016,0.000817,56185.0,56179.0,0.534006]
[1725630684257,0.000817,56185.0,56184.0,0.177986]
[1725630684509,0.000817,56185.0,56179.0,0.34291096]
[1725630684760,0.000817,56185.0,56180.0,0.21336149]
[1725630684993,0.000817,56185.0,56184.0,0.355973]
[1725630685248,0.000817,56185.0,56184.0,1.36254296]
[1725630685729,0.000817,56185.0,56184.0,0.1656]
[1725630685984,0.889995,56180.0,56179.0,0.1645]
[1725630686239,0.533997,56180.0,56179.0,0.1645]
[1725630686500,0.533997,56180.0,56179.0,0.1615]
[1725630686723,0.000817,56185.0,56184.0,0.013]
[1725630686953,0.000817,56185.0,56184.0,0.190986]
[1725630687224,0.534766,56185.0,56184.0,0.023]
[1725630687495,0.000817,56185.0,56184.0,0.187986]
[1725630687759,0.000817,56185.0,56184.0,1.07662666]
[1725630688018,0.00082,56188.0,56187.0,0.209977]
[1725630688332,0.00082,56202.0,56187.0,0.209977]
[1725630688333,0.00082,56202.0,56194.0,0.1658]
[1725630688510,0.00082,56202.0,56201.0,1.69978542]
[1725630688770,0.00082,56202.0,56201.0,2.52116138]
[1725630689026,0.00082,56202.0,56201.0,2.36085664]
[1725630689313,0.00082,56202.0,56201.0,2.36285664]
[1725630689553,0.00082,56207.0,56206.0,2.00207342]
[1725630689824,0.00082,56207.0,56206.0,2.17758438]
[1725630690302,0.00082,56207.0,56206.0,2.20058438]
[1725630690553,0.00082,56211.0,56210.0,0.91952]
[1725630690795,0.00082,56211.0,56210.0,1.45283896]
[1725630691069,0.00082,56211.0,56210.0,2.10814696]
[1725630691295,0.00082,56211.0,56210.0,1.73033896]
[1725630691529,0.00082,56211.0,56210.0,0.2995]
[1725630691762,0.00082,56211.0,56210.0,0.74484683]
[1725630691994,0.534523,56211.0,56210.0,0.1678]
[1725630692267,0.00082,56211.0,56210.0,0.1678]
[1725630692508,0.00082,56211.0,56210.0,1.05732]
[1725630692739,0.00082,56211.0,56210.0,0.345704]
[1725630692969,0.00182,56211.0,56210.0,0.1818]
[1725630693205,0.00182,56211.0,56210.0,0.18738]
[1725630693206,0.00082,56211.0,56210.0,0.18738]
[1725630693516,0.00082,56211.0,56210.0,0.726092]
[1725630693758,0.00082,56211.0,56210.0,1.64921896]
[1725630693993,0.00082,56211.0,56210.0,2.12452696]
[1725630694290,0.00082,56222.0,56221.0,1.49770342]
[1725630694509,0.00082,56222.0,56221.0,1.94958472]
[1725630695198,0.00082,56222.0,56221.0,2.30532272]
[1725630695451,0.00082,56222.0,56221.0,2.31532272]
[1725630696738,0.00082,56222.0,56221.0,2.71406072]
[1725630696982,0.00082,56222.0,56221.0,2.34932272]
[1725630697208,0.00182,56222.0,56221.0,2.36332272]
[1725630697458,0.00182,56222.0,56221.0,2.34932272]
[1725630697704,0.00082,56227.0,56226.0,1.430274]
[1725630697977,0.000816,56230.0,56229.0,0.563532]
[1725630698209,0.000816,56230.0,56229.0,1.37513096]
[1725630698444,0.000816,56230.0,56229.0,1.36513096]
[1725630698717,0.000816,56230.0,56229.0,1.74081896]
[1725630698982,0.52650515,56256.0,56241.0,0.177806]
[1725630699208,0.01860323,56256.0,56241.0,1.1550874]
[1725630699458,0.01860323,56256.0,56241.0,1.51425461]
[1725630699759,0.35553,56254.0,56241.0,1.1550874]
[1725630700025,0.355532,56254.0,56241.0,1.1550874]
[1725630700290,0.00182,56242.0,56241.0,1.1830874]
[1725630700537,0.00182,56242.0,56241.0,1.3476874]
[1725630700796,0.00082,56242.0,56241.0,1.3196874]
[1725630701040,0.00182,56242.0,56241.0,1.3476874]
[1725630701311,0.00082,56242.0,56241.0,1.3336874]
[1725630702983,0.00082,56242.0,56241.0,1.3476874]
[1725630703226,0.00082,56242.0,56241.0,2.0769114]
[1725630703494,0.00082,56242.0,56241.0,1.8510994]
[1725630703763,0.00082,56242.0,56241.0,1.1098754]
[1725630704001,0.00082,56242.0,56241.0,1.1238754]
[1725630704259,0.00082,56242.0,56241.0,1.4654874]
[1725630704516,0.00082,56242.0,56241.0,1.4514874]
[1725630704758,0.00082,56242.0,56241.0,1.4794874]
[1725630705720,0.00082,56242.0,56241.0,1.4654874]
[1725630705987,0.00082,56242.0,56241.0,1.4514874]
[1725630706227,0.00082,56242.0,56241.0,0.014]
[1725630706457,0.1288,56241.0,56228.0,0.1625]
[1725630706694,0.1288,56241.0,56222.0,0.17551096]
[1725630706936,0.1,56240.0,56216.0,0.1625]
[1725630707189,0.1,56240.0,56209.0,0.1558]
[1725630707190,0.177904,56210.0,56209.0,0.1558]
[1725630707429,0.177891,56214.0,56213.0,0.52650515]
[1725630707681,0.177891,56214.0,56198.0,0.1558]
[1725630707682,0.889552,56208.0,56198.0,0.1558]
[1725630707936,0.17791,56208.0,56198.0,0.1558]
[1725630708162,0.533731,56208.0,56198.0,0.1558]
[1725630708416,0.17791,56208.0,56202.0,0.177928]
[1725630708674,0.17791,56208.0,56198.0,0.511684]
[1725630708943,0.35578,56215.0,56201.0,0.35586]
[1725630709196,0.35578,56215.0,56194.0,0.355903]
[1725630709197,0.19753669,56208.0,56193.0,0.52650515]
[1725630709460,0.44425842,56213.0,56206.0,0.177916]
[1725630709461,0.177901,56211.0,56206.0,0.177916]
[1725630709719,0.1,56220.0,56203.0,0.355848]
[1725630709974,0.01867722,56219.0,56208.0,0.177907]
[1725630710222,0.01867722,56219.0,56209.0,0.0535365]
[1725630710223,0.177904,56210.0,56209.0,0.0535365]
[1725630710452,0.355804,56211.0,56201.0,0.35586]
[1725630710675,0.177905,56210.0,56205.0,0.177917]
[1725630710915,0.17791,56208.0,56207.0,0.00263]
[1725630711399,0.01867722,56219.0,56207.0,0.00263]
[1725630711400,0.177902,56211.0,56207.0,0.00463]
[1725630711647,0.003,56210.0,56209.0,0.177907]
[1725630711879,0.003,56210.0,56209.0,0.70923196]
[1725630712104,0.004,56210.0,56209.0,0.70923196]
[1725630712365,0.004,56210.0,56209.0,0.35341796]
[1725630712588,0.004,56210.0,56209.0,0.70923196]
[1725630712824,0.001,56210.0,56209.0,0.81055816]
[1725630713060,0.178904,56210.0,56209.0,0.1013262]
[1725630713284,0.001,56210.0,56207.0,0.00663]
[1725630713522,0.177898,56212.0,56207.0,0.179541]
[1725630713747,0.48275842,56231.0,56209.0,0.014]
[1725630713971,0.177893,56214.0,56209.0,0.191906]
[1725630714204,0.355758,56218.0,56209.0,0.185906]
[1725630714205,0.355779,56215.0,56209.0,0.185906]
[1725630714447,0.01,56235.0,56209.0,0.185906]
[1725630714448,0.177854,56226.0,56219.0,0.355748]
[1725630714679,0.177855,56226.0,56221.0,0.177867]